Cogmind - Beta 14 @@@ ROGUE MODE // 2024.08.30 @ 03:24:06 Player: MOPO3 Result: Destroyed by S-10 Pest with Light Assault Rifle Performance ------------- Evolutions (0) 0 Regions Visited (2) 400 Robots Destroyed (44) 220 Value Destroyed (567) 567 Prototype IDs (0) 0 Alien Tech Used (0) 0 Bonus (0) 0 TOTAL SCORE: 1187 Bonus ------- None Cogmind --------- Core Integrity 0/250 Matter 291/300 Energy 98/100 System Corruption 1% Temperature Cool (0) Movement Core (700) Ox13 Location -10/Mines Parts ------- > --- POWER (1) -------- (None) > --- PROPULSION (2) --- (None) > --- UTILITY (2) ------ High-capacity Storage Unit Signal Interpreter > --- WEAPON (2) ------- Light Assault Rifle Light Assault Rifle > --- INVENTORY (20) --- Light Ion Engine Light Treads Aluminum Leg Aluminum Leg Hover Unit Large Storage Unit Structural Scanner Utility Shielding Hacking Suite Assault Rifle Light Assault Rifle Light Assault Rifle Light Assault Rifle Light Assault Rifle Mining Claw Peak State ------------ > --- POWER ------------ Light Nuclear Core > --- PROPULSION ------- Light Treads Light Treads > --- UTILITY ---------- Large Storage Unit Signal Interpreter > --- WEAPON ----------- Light Assault Rifle Light Assault Rifle > --- INVENTORY -------- Light Ion Engine Light Ion Engine Light Treads Aluminum Leg Aluminum Leg Hover Unit Assault Rifle Light Assault Rifle Light Assault Rifle Mining Claw [Rating: 10] Favorites ----------- Power Light Ion Engine Engine Light Ion Engine Power Core Light Nuclear Core Propulsion Light Treads Treads Light Treads Utility Signal Interpreter Device Structural Scanner Storage High-capacity Storage Unit Processor Signal Interpreter Weapon Light Assault Rifle Ballistic Gun Light Assault Rifle Build | -11 -10 -10 ------- Run | Yrd Mat Min Slots Evolved . | . . . Power . | . . . Propulsion . | . . . Utility . | . . . Weapon . | . . . Parts Attached 31 | 6 23 2 Power 4 | 1 3 . Engine 3 | 1 2 . Core 1 | . 1 . Reactor . | . . . Propulsion 10 | 2 8 . Treads 10 | 2 8 . Leg . | . . . Wheel . | . . . Hover . | . . . Flight . | . . . Utility 7 | 1 6 . Device 3 | . 3 . Storage 3 | 1 2 . Processor 1 | . 1 . Hackware . | . . . Protection . | . . . Artifact . | . . . Weapon 10 | 2 6 2 Energy Gun . | . . . Energy Cannon . | . . . Ballistic Gun 10 | 2 6 2 Ballistic Cannon . | . . . Launcher . | . . . Special Weapon . | . . . Impact Weapon . | . . . Slashing Weapon . | . . . Piercing Weapon . | . . . Special Melee Weapon . | . . . Unidentified Prototypes . | . . . Parts Lost 5 | . 2 3 Power 2 | . 1 1 Propulsion 3 | . 1 2 Utility . | . . . Weapon . | . . . Highest Loss Streak 3 | . 2 3 To Critical Strikes . | . . . Average Slot Usage (%) 96 | . 96 97 Engine 10 | . 10 12 Core 3 | . 3 . Treads 27 | . 27 26 Device 2 | . 3 . Storage 14 | . 14 14 Processor 9 | . 8 14 Ballistic Gun 27 | . 27 28 Peak Build Rating 10 | 6 10 8 Average Rating 7 | 4 7 7 On Entrance 4 | . 6 8 Naked Turns . | . . . Heaviest Build 45 | 12 45 45 Greatest Support 40 | 40 40 40 Greatest Overweight (x) 3 | 3 3 1 Average Overweight (x) . | . . 1 Largest Inventory Capacity 20 | 8 20 20 Average Capacity 14 | 7 13 20 Most Carried 15 | 3 13 15 Average Carried 9 | 1 9 13 Final Capacity 20 | 8 20 20 Final Carried 15 | 3 13 15 Class Distribution -------------------- 65% | Scavenger-Mutant 34% | Mutant Dominant Class ---------------- Scavenger-Mutant | -10/Materials Scavenger-Mutant | -10/Mines Resources | -11 -10 -10 ----------- Run | Yrd Mat Min Matter Collected 1116 | 234 844 38 Remotely . | . . . Salvage Created 1193 | . 1011 182 Parts 98 | . 91 7 Haulers Intercepted 2 | . 2 . Recyclers Shooed 2 | . . 2 Parts Field Recycled . | . . . Retrieved Matter . | . . . Parts Self-Destructed . | . . . Prevented . | . . . Kills | -11 -10 -10 ------- Run | Yrd Mat Min Combat Hostiles Destroyed 19 | . 14 5 Guns 19 | . 14 5 Classes Destroyed 8 | . 8 . Worker 8 | . 8 . Builder 10 | . 10 . Hauler 2 | . 2 . Recycler 2 | . 1 1 Operator 1 | . 1 . Watcher 2 | . 2 . Swarmer 10 | . 6 4 Grunt 9 | . 8 1 Best Kill Streak 4 | . 4 4 Combat Bots Only 3 | . 2 3 Max Kills in Single Turn 1 | . 1 1 Gunslinging . | . . . Exploded . | . . . Melee . | . . . Uniques/NPCs Destroyed . | . . . Combat | -11 -10 -10 -------- Run | Yrd Mat Min Hostile Shots Fired 151 | . 99 52 Missed 36 | . 25 11 Damage Taken 1248 | . 849 399 Core 257 | . 156 101 Absorbed by Shields . | . . . Regen/Repaired (Parts) 103 | . 103 . Core Remaining (%) 100 | 100 . . Volleys Fired 148 | . 127 21 Largest 2 | . 2 2 Hottest 40 | . 40 40 Shots Fired 297 | . 254 43 Gun 297 | . 254 43 Cannon . | . . . Launcher . | . . . Special . | . . . Kinetic 297 | . 254 43 Thermal . | . . . Explosive . | . . . Electromagnetic . | . . . Robot Hit Streak 17 | . 17 14 Robot Miss Streak 7 | . 7 5 Penetration Max . | . . . Secondary Targets 4 | . 3 1 Max Gunslinging Chain 1 | . 1 1 Shots Hit Robots 182 | . 151 31 Core Hits 80 | . 63 17 Critical Kills 1 | . 1 . Critical Parts Destroyed 3 | . 1 2 Critical Strikes 4 | . 2 2 Destroy 4 | . 2 2 Melee Attacks . | . . . Impact . | . . . Slashing . | . . . Piercing . | . . . Sneak Attacks . | . . . Combat Hostiles . | . . . Follow-up Attacks . | . . . Damage Inflicted 1750 | . 1475 275 Guns 1729 | . 1468 261 Cannons . | . . . Explosions . | . . . Melee . | . . . Ramming 21 | . 7 14 Kinetic 1729 | . 1468 261 Thermal . | . . . Explosive . | . . . Electromagnetic . | . . . Impact . | . . . Slashing . | . . . Piercing . | . . . Highest Corruption 1 | . 1 1 Average Corruption 1 | . 1 1 Corruption Purged . | . . . Corruption Blocked . | . . . Effects 9 | . 5 4 Message Errors 2 | . 1 1 Matter Fused 3 | . 3 . Heat Flow Errors 1 | . . 1 Energy Discharges 1 | . . 1 Data Loss (minor) 1 | . 1 . Misfires 1 | . . 1 Overload Shots . | . . . Overflow Damage . | . . . Projectiles . | . . . Explosions . | . . . Melee . | . . . Knockbacks 1 | . . 1 Impact 1 | . . 1 Kinetic . | . . . Secondary . | . . . Self-Inflicted Damage . | . . . Shots . | . . . Rammed 9 | . 3 6 Targets Rammed 9 | . 3 6 Kicked . | . . . Crushed . | . . . Highest Temperature 104 | . 22 104 Average Temperature 8 | . 4 24 Received Heat Transfer 486 | . 390 96 Siege Activations . | . . . Robots Corrupted . | . . . Combat Hostiles . | . . . Parts Fried . | . . . Impact Corruptions . | . . . Robots Melted . | . . . Combat Hostiles . | . . . Parts Melted . | . . . Heat Transferred . | . . . Parts Sabotaged . | . . . Parts Stolen . | . . . Parts Stripped . | . . . Power Chain Reactions . | . . . Alert | -11 -10 -10 ------- Run | Yrd Mat Min Peak Influence 271 | . 271 135 Initial 15 | . . 15 Average 66 | . 69 61 Maximum Alert Level 1 | . 1 . Low Security (%) 95 | 100 94 100 Level 1 4 | . 5 . Level 2 . | . . . Level 3 . | . . . Level 4 . | . . . Level 5 . | . . . High Security . | . . . Max Security . | . . . Squads Dispatched 2 | . 2 . Investigation 1 | . 1 . Extermination . | . . . Reinforcement 1 | . 1 . Assault . | . . . Garrison . | . . . Intercept . | . . . Searches Triggered . | . . . Construction Impeded . | . . . Haulers Reinforced . | . . . Active Scanning Responses . | . . . Cargo Convoy Interrupts . | . . . Stealth | -11 -10 -10 --------- Run | Yrd Mat Min Distress Signals . | . . . Communications Jammed . | . . . Distress Signals . | . . . Times Spotted 39 | . 31 8 Peak Tracking Total 5 | . 3 5 Tactical Retreats 4 | . 3 1 Traps | -11 -10 -10 ------- Run | Yrd Mat Min Traps Triggered 8 | . 8 . Indirectly . | . . . Trap Hack Attempts . | . . . Triggered . | . . . Disarmed . | . . . Reprogrammed . | . . . Reused . | . . . Traps Extracted . | . . . Installed . | . . . Triggered . | . . . Machines | -11 -10 -10 ---------- Run | Yrd Mat Min Machines Disabled . | . . . Max in Single Turn . | . . . Machines Repaired . | . . . Machines Dismantled . | . . . Machines Sabotaged . | . . . Overloaded Fab Kills . | . . . Hacking | -11 -10 -10 --------- Run | Yrd Mat Min Machines Accessed 5 | . 5 . Terminals 4 | . 4 . Fabricators . | . . . Repair Stations 1 | . 1 . Recycling Units . | . . . Scanalyzers . | . . . Garrison Access . | . . . Total Hacks 12 | . 12 . Successful 4 | . 4 . Failed 8 | . 8 . Catastrophic 3 | . 3 . Database Lockouts . | . . . Manual 6 | . 6 . Terminals 8 | . 8 . Fabricators . | . . . Repair Stations 4 | . 4 . Recycling Units . | . . . Scanalyzers . | . . . Garrison Access . | . . . Terminal Hacks 1 | . 1 . Unreport Threat 1 | . 1 . Fabricator Hacks . | . . . Repair Station Hacks 3 | . 3 . Scan Component 2 | . 2 . Repair 1 | . 1 . Recycling Unit Hacks . | . . . Scanalyzer . | . . . Garrison Access Hacks . | . . . Unauthorized Hacks . | . . . Terminals . | . . . Fabricators . | . . . Repair Stations . | . . . Recycling Units . | . . . Scanalyzers . | . . . Garrison Access . | . . . Data Cores Recovered . | . . . Used . | . . . Hacking Detections 5 | . 5 . Full Trace Events 1 | . 1 . Feedback Events . | . . . Feedback Blocked . | . . . Robot Schematics Acquired . | . . . Robots Built . | . . . Authchips . | . . . Time . | . . . Total Robot Build Rating . | . . . Part Schematics Acquired . | . . . Parts Built . | . . . Authchips . | . . . Time . | . . . Total Part Build Rating . | . . . Parts Repaired 1 | . 1 . Time 26 | . 26 . Parts Recycled . | . . . Recycled Matter . | . . . Retrieved Matter . | . . . Retrieved Components . | . . . Parts Scanalyzed . | . . . Part Schematics Acquired . | . . . Parts Damaged . | . . . Bothacking | -11 -10 -10 ------------ Run | Yrd Mat Min Used RIF Installer . | . . . Robots Hacked . | . . . Non-combat . | . . . Combat . | . . . Robot Hacks Applied . | . . . Relay Couplers Released . | . . . Fabnet Peak Effective % . | . . . Robots Rewired . | . . . Allies Hacked . | . . . Hacks Repelled . | . . . Allies | -11 -10 -10 -------- Run | Yrd Mat Min Total Allies . | . . . Largest Group . | . . . Highest-Rated Group . | . . . Highest-Rated Ally . | . . . Total Orders . | . . . Ally Attacks . | . . . Total Damage . | . . . Kills . | . . . Allies Corrupted . | . . . Allies Melted . | . . . Intel | -11 -10 -10 ------- Run | Yrd Mat Min Robot Analysis Total . | . . . Derelict Logs Recovered . | . . . Drone Launches . | . . . Drone Recoveries . | . . . Exploration | -11 -10 -10 ------------- Run | Yrd Mat Min Turns Passed 2491 | 72 2096 323 Spaces Moved 958 | 37 819 102 Core 22 | 15 7 . Treads 936 | 22 812 102 Legs . | . . . Wheels . | . . . Hover . | . . . Flight . | . . . Fastest Speed 50 | 50 150 240 Average Speed 194 | 164 190 240 Slowest Speed 240 | 200 240 240 Overloaded Moves . | . . . Propulsion Burnouts . | . . . Robots Hopped . | . . . Cave-ins Triggered . | . . . Exploration Rate (%) 36 | 4 73 33 Regions Visited 2 Branch Regions 1 Pre-discovered Areas . | . . . Known Exits Taken 1 | . 1 . Unknown Exits Taken 1 | 1 . . Scrap Searched 1 | . . 1 Spaces Dug . | . . . Terrain Destroyed . | . . . Melee . | . . . Projectile . | . . . AOE . | . . . Terrain Rammed . | . . . Walls Destroyed . | . . . Machines Disabled . | . . . Actions | -11 -10 -10 --------- Run | Yrd Mat Min Total 1312 | 45 1128 139 Wait 142 | . 134 8 Move 956 | 36 818 102 Hop . | . . . Pick Up 15 | 3 12 . Fast Attach 18 | 6 12 . Attach 2 | . 2 . Detach . | . . . Swap 11 | . 9 2 Drop 11 | . 11 . Fire 148 | . 127 21 Melee . | . . . Ram . | . . . Kick . | . . . Crush 9 | . 3 6 Escape Stasis . | . . . Rewire . | . . . Trap . | . . . Miscellaneous . | . . . Route ------- -11/Scrapyard -10/Materials (discovered 4 exits: *Mat x2 / *Min x2) -10/Mines History --------- Turn | Location | Event 27 | -11/Scrapyard | Discovered new exit (range 14) 73 | -11/Scrapyard | Entered Materials 155 | -10/Materials | Discovered new exit (range 8) 302 | -10/Materials | Build established: Mutant 430 | -10/Materials | Discovered new exit (range 9) 635 | -10/Materials | Repaired Lgt. Treads 1011 | -10/Materials | Core integrity fell below 50% 1136 | -10/Materials | Build established: Scavenger-Mutant 1154 | -10/Materials | Discovered new exit (range 14) 1180 | -10/Materials | Identified exit to Materials 1454 | -10/Materials | Discovered exit to Materials (range 3) 2167 | -10/Materials | Identified exit to Mines 2169 | -10/Materials | Entered Mines 2262 | -10/Mines | Met a Derelict bent on vengeance 2481 | -10/Mines | Core integrity fell below 20% 2492 | -10/Mines | Destroyed by S-10 Pest with Light Assault Rifle Last Messages --------------- Slammed into R-06 Scavenger. Slammed into T-07 Excavator. T-07 Excavator knocked back. Slammed into K-01 Serf. Searching scrap... Found Sensor Array. Found Med. Storage Unit. Found Lgt. Assault Rifle. Found 38 Matter. K-01 Serf collects debris. Acquired 10 matter. Lgt. Ion Engine destroyed. Lgt. Treads destroyed. S-10 Pest destroyed. Switching to secondary target: G-47 Trooper. G-47 Trooper suffers critical hit (Destroy). Destroyed Aluminum Leg. Lgt. Treads destroyed. G-47 Trooper destroyed. K-01 Serf collects debris. Map ----- +----------------------------------------------------+ | ??????????## #??????# #??????## #?????? | | ??????????## ##??????# #???????## ###### | | ??????????# ###???????# #????????# | | ??????????# ############ #????????## | | ??????????## % #????###### ##### | | ???????????## #????# ##???? | | ????????????## ##############????# ##????? | | ?????????????####??####???????????#!#######?????? | | ??????????????????## #############%#???????????? | | ?????????????????## %*% #???????????? | | ????????????????## ###############???????????? | | ???????????????## ##?????????????????????????? | | ???????????????# %########???????????????????? | | ??????????????## % ## ##??????????????????? | | ??????????????# % #??????????????????? | | ??????????????# ##???#####?????????? | | ??????????????# ### ### ##????????? | | ??????????????## #####?## #????????? | | ???????????????###???????# #???????? | | ?????????????????????????# ????? | | ?????????????????????????# # ?????? | | ?????????????????????????# ## ?????? | | ?????????????????????????# #?# ??????? | | ?????????????????????????# #??## ??????? | | ?????????????????????##### #????## ??????? | | ?????????????????????#%g@s #??????# ???????? | | ?????????????????????#k##%s #??????? ???????? | | ?????????????????????#!##=###???????? ????????? | | ?????????????????????# ## #??????????? ????????? | | ?????????????????????# ## #?????????????????????? | | ?????????????????????# ## #?????????????????????? | | ?????????????????????# ## ?????????????????????? | | ?????????????????????# ## ?????????????????????? | | ????????????????????? ####?????????????????????? | | ?????????????????????# #????????????????????????? | | ????????????????????? ????????????????????????? | | ????????????????????? ????????????????????????? | | ????????????????????? ????????????????????????? | | ????????????????????? ????????????????????????? | | ????????????????????? ????????????????????????? | | ????????????????????? ????????????????????????? | | ????????????????????? ????????????????????????? | | ????????????????????? ????????????????????????? | | ????????????????????? #????????????????????????? | | ????????????????????? #?????????????????????????? | | ????????????????????????????????????????????????? | | ????????????????????????????????????????????????? | | ????????????????????????????????????????????????? | | ????????????????????????????????????????????????? | | ????????????????????????????????????????????????? | +----------------------------------------------------+ Best States ------------- Heat Dissipation 25 Energy Generation 14 Energy Capacity 250 Matter Stores 300 Matter Capacity 300 Sight Range 16 Terrain Scan Range 14 Terrain Scan Density 10 Evasion (%) 40 Recoil Reduction 2 Item Schematics ----------------- None Robot Schematics ------------------ None Fabricated ------------ Nothing Alien Tech Used ----------------- None Achievements -------------- None Challenges ------------ None Game ------ Seed SpikedTargetingNanosword Manual? 0 Play Time 00:16:01 Cumulative 14.4 hours Start 2024.08.30 @ 03:09:30 End 2024.08.30 @ 03:24:06 Sessions 1 Manual Loads 0 Difficulty Rogue Special Mode None Game No. 24 Rogue 24 Adventurer 0 Explorer 0 Win Type - Total 0 Types 0/0/0/0/0/0/0/0/0 Lore% 10 Gallery% 18 Achievement% 17 Wizard Run 0 Options --------- Layout 0 ASCII 0 Keyboard 0 Movement Numpad Keybinds 0 Fullscreen 1 Font 18/Cog Map View 76x50 Zoom Use 0% Tactical HUD 0 Map Filters NONE Filters NONE Steam 1 RUN: 3937815c-9657-4d30-882d-6e504774641b